[Event "Titled Tuesday Blitz October 04 Late 2022"]
[White "Sokolovsky, Yahli"]
[Black "Demidov, Mikhail"]
[WhiteFideId "2820242"]
[BlackFideId "4197143"]
[WhiteElo "2316"]
[BlackElo "2520"]
[Result "0-1"]
[Round "06"]
[TimeControl "180+1"]
[Date "2022.10.04"]
[WhiteClock "0:00:18"]
[BlackClock "0:01:31"]

1. b3 {[%clk 0:03:00]}  Nf6 {[%clk 0:02:57]} 2. Bb2 {[%clk 0:03:01]}  g6 {[%clk 0:02:56]} 3. d4 {[%clk 0:03:01]}  Bg7 {[%clk 0:02:56]} 4. Nf3 {[%clk 0:03:02]}  O-O {[%clk 0:02:55]} 5. g3 {[%clk 0:03:02]}  b6 {[%clk 0:02:55]} 6. Bg2 {[%clk 0:03:02]}  Bb7 {[%clk 0:02:55]} 7. O-O {[%clk 0:03:03]}  c5 {[%clk 0:02:54]} 8. c4 {[%clk 0:02:45]}  cxd4 {[%clk 0:02:54]} 9. Qxd4 {[%clk 0:02:44]}  Nc6 {[%clk 0:02:53]} 10. Qd2 {[%clk 0:02:44]}  d5 {[%clk 0:02:50]} 11. Na3 {[%clk 0:02:27]}  dxc4 {[%clk 0:02:47]} 12. Qxd8 {[%clk 0:02:25]}  Rfxd8 {[%clk 0:02:45]} 13. Nxc4 {[%clk 0:02:25]}  Nd5 {[%clk 0:02:39]} 14. Bxg7 {[%clk 0:02:25]}  Kxg7 {[%clk 0:02:39]} 15. Rac1 {[%clk 0:02:20]}  Rac8 {[%clk 0:02:37]} 16. Rfd1 {[%clk 0:02:17]}  Nc3 {[%clk 0:02:29]} 17. Re1 {[%clk 0:01:12]}  Nxa2 {[%clk 0:02:23]} 18. Ra1 {[%clk 0:01:12]}  Nab4 {[%clk 0:02:22]} 19. Nfe5 {[%clk 0:01:13]}  Nc2 {[%clk 0:02:18]} 20. Rxa7 {[%clk 0:01:04]}  Nxe1 {[%clk 0:02:10]} 21. Rxb7 {[%clk 0:01:01]}  Nxe5 {[%clk 0:02:09]} 22. Nxe5 {[%clk 0:00:57]}  Rc1 {[%clk 0:02:02]} 23. Bf1 {[%clk 0:00:57]}  Rdd1 {[%clk 0:01:44]} 24. Rd7 {[%clk 0:00:22]}  Rxd7 {[%clk 0:01:37]} 25. Nxd7 {[%clk 0:00:23]}  b5 {[%clk 0:01:38]} 26. Ne5 {[%clk 0:00:20]}  Rb1 {[%clk 0:01:35]} 27. Nc6 {[%clk 0:00:17]}  Rxb3 {[%clk 0:01:33]} 28. Nxe7 {[%clk 0:00:18]}  Rb1 {[%clk 0:01:31]} 0-1


[Site "https://www.chess.com"]

[Event "Titled Tuesday Blitz October 04 Late 2022"]
[White "Zakhartsov, Vladimir"]
[Black "Postnikov, Daniil"]
[WhiteFideId "4145097"]
[BlackFideId "4166329"]
[WhiteElo "2492"]
[BlackElo "2261"]
[Result "1-0"]
[Round "06"]
[TimeControl "180+1"]
[Date "2022.10.04"]
[WhiteClock "0:00:52"]
[BlackClock "0:00:09"]

1. d4 {[%clk 0:02:56]}  Nf6 {[%clk 0:02:59]} 2. c4 {[%clk 0:02:55]}  c5 {[%clk 0:02:58]} 3. d5 {[%clk 0:02:54]}  b5 {[%clk 0:02:58]} 4. cxb5 {[%clk 0:02:55]}  a6 {[%clk 0:02:58]} 5. e3 {[%clk 0:02:55]}  axb5 {[%clk 0:02:57]} 6. Bxb5 {[%clk 0:02:56]}  Qa5+ {[%clk 0:02:58]} 7. Nc3 {[%clk 0:02:48]}  Bb7 {[%clk 0:02:58]} 8. a4 {[%clk 0:02:48]}  Nxd5 {[%clk 0:02:54]} 9. Bd2 {[%clk 0:02:46]}  Qb6 {[%clk 0:02:53]} 10. Nf3 {[%clk 0:02:46]}  e6 {[%clk 0:02:52]} 11. O-O {[%clk 0:02:46]}  Be7 {[%clk 0:02:52]} 12. e4 {[%clk 0:02:44]}  Nb4 {[%clk 0:02:52]} 13. Ne5 {[%clk 0:02:44]}  O-O {[%clk 0:02:50]} 14. Bf4 {[%clk 0:01:55]}  d5 {[%clk 0:02:02]} 15. exd5 {[%clk 0:01:55]}  exd5 {[%clk 0:02:02]} 16. Qg4 {[%clk 0:01:55]}  d4 {[%clk 0:01:57]} 17. Ne2 {[%clk 0:01:52]}  Nd5 {[%clk 0:01:36]} 18. Nc4 {[%clk 0:01:35]}  Qd8 {[%clk 0:01:31]} 19. Ng3 {[%clk 0:01:31]}  Nxf4 {[%clk 0:01:21]} 20. Qxf4 {[%clk 0:01:31]}  Qd5 {[%clk 0:00:45]} 21. f3 {[%clk 0:01:31]}  Bd8 {[%clk 0:00:45]} 22. Rfe1 {[%clk 0:01:17]}  Nc6 {[%clk 0:00:40]} 23. Nf5 {[%clk 0:01:11]}  Ba5 {[%clk 0:00:22]} 24. Bxc6 {[%clk 0:01:07]}  Qxc4 {[%clk 0:00:21]} 25. Bxb7 {[%clk 0:01:00]}  Bxe1 {[%clk 0:00:20]} 26. Bxa8 {[%clk 0:00:56]}  Bb4 {[%clk 0:00:09]} 27. Bd5 {[%clk 0:00:54]}  Qc2 {[%clk 0:00:09]} 28. Qe5 {[%clk 0:00:52]} 1-0


[Site "https://www.chess.com"]

[Event "Titled Tuesday Blitz October 04 Late 2022"]
[White "miragha_yev"]
[Black "Sarana, Alexey"]
[BlackFideId "24133795"]
[WhiteElo "2786"]
[BlackElo "2689"]
[Result "0-1"]
[Round "06"]
[TimeControl "180+1"]
[Date "2022.10.04"]
[WhiteClock "0:00:23"]
[BlackClock "0:00:35"]

1. d4 {[%clk 0:03:00]}  Nf6 {[%clk 0:03:00]} 2. c4 {[%clk 0:03:01]}  e6 {[%clk 0:03:00]} 3. Nc3 {[%clk 0:03:01]}  d5 {[%clk 0:03:00]} 4. Nf3 {[%clk 0:03:00]}  Nbd7 {[%clk 0:03:00]} 5. cxd5 {[%clk 0:03:00]}  exd5 {[%clk 0:03:01]} 6. Bf4 {[%clk 0:03:01]}  c6 {[%clk 0:02:59]} 7. e3 {[%clk 0:03:01]}  Nh5 {[%clk 0:02:59]} 8. Be5 {[%clk 0:03:00]}  Nxe5 {[%clk 0:02:57]} 9. Nxe5 {[%clk 0:03:01]}  g6 {[%clk 0:02:54]} 10. Be2 {[%clk 0:02:58]}  Ng7 {[%clk 0:02:54]} 11. O-O {[%clk 0:02:59]}  Bd6 {[%clk 0:02:54]} 12. f4 {[%clk 0:02:58]}  O-O {[%clk 0:02:53]} 13. Bd3 {[%clk 0:02:55]}  Qe7 {[%clk 0:02:45]} 14. Qd2 {[%clk 0:02:46]}  f6 {[%clk 0:02:37]} 15. Nf3 {[%clk 0:02:46]}  Bf5 {[%clk 0:02:37]} 16. Rae1 {[%clk 0:02:43]}  Rae8 {[%clk 0:02:37]} 17. e4 {[%clk 0:02:39]}  dxe4 {[%clk 0:02:37]} 18. Bxe4 {[%clk 0:02:38]}  Bxe4 {[%clk 0:02:36]} 19. Rxe4 {[%clk 0:02:39]}  Qf7 {[%clk 0:02:35]} 20. Rfe1 {[%clk 0:02:37]}  Rxe4 {[%clk 0:02:36]} 21. Rxe4 {[%clk 0:02:34]}  Rd8 {[%clk 0:02:36]} 22. a3 {[%clk 0:02:31]}  Ne6 {[%clk 0:02:26]} 23. f5 {[%clk 0:02:18]}  gxf5 {[%clk 0:02:24]} 24. Rh4 {[%clk 0:02:19]}  Qg6 {[%clk 0:02:19]} 25. Rh6 {[%clk 0:02:17]}  Qg7 {[%clk 0:02:18]} 26. Rh5 {[%clk 0:02:16]}  Qg6 {[%clk 0:01:24]} 27. Rh6 {[%clk 0:02:16]}  Qg4 {[%clk 0:01:09]} 28. Rh4 {[%clk 0:02:12]}  Qg7 {[%clk 0:00:59]} 29. Rh5 {[%clk 0:02:11]}  Nxd4 {[%clk 0:00:55]} 30. Nxd4 {[%clk 0:02:07]}  Bc5 {[%clk 0:00:55]} 31. Ne2 {[%clk 0:02:00]}  Qg4 {[%clk 0:00:55]} 32. Qh6 {[%clk 0:01:10]}  Bxd4+ {[%clk 0:00:51]} 33. Kf1 {[%clk 0:01:10]}  Qg6 {[%clk 0:00:49]} 34. Ng3 {[%clk 0:00:36]}  Qxh6 {[%clk 0:00:45]} 35. Rxh6 {[%clk 0:00:37]}  Bxb2 {[%clk 0:00:45]} 36. Nxf5 {[%clk 0:00:37]}  Bxa3 {[%clk 0:00:44]} 37. Ke2 {[%clk 0:00:33]}  Re8+ {[%clk 0:00:37]} 38. Kd3 {[%clk 0:00:33]}  Re6 {[%clk 0:00:37]} 39. Rh3 {[%clk 0:00:32]}  Bf8 {[%clk 0:00:37]} 40. Kc4 {[%clk 0:00:32]}  Re4+ {[%clk 0:00:37]} 41. Kd3 {[%clk 0:00:31]}  Ra4 {[%clk 0:00:37]} 42. Ne3 {[%clk 0:00:30]}  b5 {[%clk 0:00:36]} 43. Nc2 {[%clk 0:00:29]}  c5 {[%clk 0:00:36]} 44. Rh5 {[%clk 0:00:29]}  c4+ {[%clk 0:00:36]} 45. Kd2 {[%clk 0:00:28]}  b4 {[%clk 0:00:36]} 46. Rh4 {[%clk 0:00:25]}  b3 {[%clk 0:00:36]} 47. Ne3 {[%clk 0:00:23]}  c3+ {[%clk 0:00:35]} 0-1


[Site "https://www.chess.com"]

[Event "Titled Tuesday Blitz October 04 Late 2022"]
[White "Bortnyk, Mykola"]
[Black "Kamsky, Gata"]
[WhiteFideId "14120836"]
[BlackFideId "2000024"]
[WhiteElo "2582"]
[BlackElo "2666"]
[Result "1/2-1/2"]
[Round "07"]
[TimeControl "180+1"]
[Date "2022.10.04"]
[WhiteClock "0:00:08"]
[BlackClock "0:00:09"]

1. e4 {[%clk 0:03:00]}  c5 {[%clk 0:02:57]} 2. c3 {[%clk 0:03:00]}  Nf6 {[%clk 0:02:55]} 3. e5 {[%clk 0:03:01]}  Nd5 {[%clk 0:02:55]} 4. Nf3 {[%clk 0:03:02]}  Nc6 {[%clk 0:02:53]} 5. Bc4 {[%clk 0:03:02]}  Nb6 {[%clk 0:02:53]} 6. Bb3 {[%clk 0:03:03]}  d5 {[%clk 0:02:53]} 7. exd6 {[%clk 0:03:02]}  Qxd6 {[%clk 0:02:53]} 8. O-O {[%clk 0:03:03]}  Be6 {[%clk 0:02:53]} 9. Bxe6 {[%clk 0:02:58]}  Qxe6 {[%clk 0:02:53]} 10. a4 {[%clk 0:02:59]}  a6 {[%clk 0:02:47]} 11. d4 {[%clk 0:02:41]}  cxd4 {[%clk 0:02:46]} 12. cxd4 {[%clk 0:02:40]}  Qd7 {[%clk 0:02:27]} 13. Nc3 {[%clk 0:02:38]}  e6 {[%clk 0:02:26]} 14. Qb3 {[%clk 0:02:17]}  Bb4 {[%clk 0:01:15]} 15. Ne5 {[%clk 0:02:05]}  Qxd4 {[%clk 0:01:05]} 16. Nxc6 {[%clk 0:02:02]}  bxc6 {[%clk 0:01:05]} 17. Be3 {[%clk 0:02:03]}  Qc4 {[%clk 0:01:06]} 18. Qd1 {[%clk 0:01:41]}  Nd5 {[%clk 0:01:03]} 19. Nxd5 {[%clk 0:01:37]}  cxd5 {[%clk 0:01:00]} 20. Rc1 {[%clk 0:01:37]}  Qe4 {[%clk 0:00:56]} 21. Qb3 {[%clk 0:01:15]}  O-O {[%clk 0:00:53]} 22. Rfd1 {[%clk 0:01:14]}  a5 {[%clk 0:00:49]} 23. Rd4 {[%clk 0:01:11]}  Qf5 {[%clk 0:00:47]} 24. Rf4 {[%clk 0:01:07]}  Qe5 {[%clk 0:00:42]} 25. h4 {[%clk 0:01:07]}  Rfc8 {[%clk 0:00:40]} 26. Rd1 {[%clk 0:01:06]}  h5 {[%clk 0:00:37]} 27. Qd3 {[%clk 0:00:58]}  Bd6 {[%clk 0:00:34]} 28. Qe2 {[%clk 0:00:47]}  Bc5 {[%clk 0:00:26]} 29. Qf3 {[%clk 0:00:43]}  Bxe3 {[%clk 0:00:26]} 30. fxe3 {[%clk 0:00:44]}  Rc7 {[%clk 0:00:24]} 31. Rf1 {[%clk 0:00:42]}  Rf8 {[%clk 0:00:19]} 32. Rf2 {[%clk 0:00:43]}  g6 {[%clk 0:00:18]} 33. g4 {[%clk 0:00:41]}  hxg4 {[%clk 0:00:17]} 34. Rxg4 {[%clk 0:00:42]}  Kg7 {[%clk 0:00:16]} 35. Kg2 {[%clk 0:00:32]}  f5 {[%clk 0:00:15]} 36. Rd4 {[%clk 0:00:24]}  Rh8 {[%clk 0:00:15]} 37. b4 {[%clk 0:00:22]}  g5 {[%clk 0:00:15]} 38. h5 {[%clk 0:00:16]}  g4 {[%clk 0:00:14]} 39. Rxg4+ {[%clk 0:00:17]}  Kf7 {[%clk 0:00:11]} 40. Rg6 {[%clk 0:00:12]}  axb4 {[%clk 0:00:10]} 41. a5 {[%clk 0:00:13]}  Qe4 {[%clk 0:00:10]} 42. Qxe4 {[%clk 0:00:09]}  dxe4 {[%clk 0:00:10]} 43. Rg5 {[%clk 0:00:08]}  Kf6 {[%clk 0:00:10]} 44. Rg6+ {[%clk 0:00:09]}  Ke5 {[%clk 0:00:10]} 45. h6 {[%clk 0:00:09]}  Rch7 {[%clk 0:00:10]} 46. a6 {[%clk 0:00:07]}  Rxh6 {[%clk 0:00:10]} 47. Rxh6 {[%clk 0:00:07]}  Rxh6 {[%clk 0:00:10]} 48. Rb2 {[%clk 0:00:08]}  Rh8 {[%clk 0:00:10]} 49. Rxb4 {[%clk 0:00:08]}  Ra8 {[%clk 0:00:10]} 50. Rb6 {[%clk 0:00:08]}  Kd5 {[%clk 0:00:10]} 51. Kg3 {[%clk 0:00:09]}  e5 {[%clk 0:00:11]} 52. Rb5+ {[%clk 0:00:08]}  Kd6 {[%clk 0:00:10]} 53. Ra5 {[%clk 0:00:08]}  Ra7 {[%clk 0:00:09]} 54. Ra1 {[%clk 0:00:07]}  Kd5 {[%clk 0:00:08]} 55. Ra4 {[%clk 0:00:06]}  Kc5 {[%clk 0:00:07]} 56. Ra5+ {[%clk 0:00:06]}  Kd6 {[%clk 0:00:07]} 57. Ra1 {[%clk 0:00:05]}  Kc6 {[%clk 0:00:07]} 58. Ra5 {[%clk 0:00:05]}  f4+ {[%clk 0:00:07]} 59. exf4 {[%clk 0:00:05]}  exf4+ {[%clk 0:00:08]} 60. Kxf4 {[%clk 0:00:06]}  Kb6 {[%clk 0:00:08]} 61. Ra1 {[%clk 0:00:06]}  Rxa6 {[%clk 0:00:09]} 62. Rxa6+ {[%clk 0:00:07]}  Kxa6 {[%clk 0:00:09]} 63. Kxe4 {[%clk 0:00:08]} 1/2-1/2


[Site "https://www.chess.com"]

[Event "Titled Tuesday Blitz October 04 Late 2022"]
[White "Demidov, Mikhail"]
[Black "Bortnyk, Olexandr"]
[WhiteFideId "4197143"]
[BlackFideId "14120828"]
[WhiteElo "2520"]
[BlackElo "2723"]
[Result "0-1"]
[Round "07"]
[TimeControl "180+1"]
[Date "2022.10.04"]
[WhiteClock "0:00:07"]
[BlackClock "0:00:03"]

1. Nf3 {[%clk 0:03:00]}  Nf6 {[%clk 0:02:57]} 2. g3 {[%clk 0:02:59]}  d6 {[%clk 0:02:58]} 3. d4 {[%clk 0:02:59]}  g6 {[%clk 0:02:59]} 4. b3 {[%clk 0:02:59]}  Bg7 {[%clk 0:02:59]} 5. Bb2 {[%clk 0:02:59]}  O-O {[%clk 0:03:00]} 6. Bg2 {[%clk 0:02:58]}  a5 {[%clk 0:03:00]} 7. O-O {[%clk 0:02:57]}  a4 {[%clk 0:02:53]} 8. c4 {[%clk 0:02:56]}  c6 {[%clk 0:02:52]} 9. bxa4 {[%clk 0:02:51]}  Qa5 {[%clk 0:02:52]} 10. Nc3 {[%clk 0:02:50]}  Nbd7 {[%clk 0:02:47]} 11. Qb3 {[%clk 0:02:44]}  Nb6 {[%clk 0:02:46]} 12. Nd2 {[%clk 0:02:38]}  Be6 {[%clk 0:02:40]} 13. e4 {[%clk 0:02:29]}  Nxa4 {[%clk 0:02:29]} 14. Nxa4 {[%clk 0:02:28]}  Qxa4 {[%clk 0:02:29]} 15. d5 {[%clk 0:02:25]}  Bd7 {[%clk 0:02:21]} 16. Rfe1 {[%clk 0:02:20]}  Rfc8 {[%clk 0:01:44]} 17. e5 {[%clk 0:02:16]}  dxe5 {[%clk 0:01:40]} 18. Bxe5 {[%clk 0:02:15]}  cxd5 {[%clk 0:01:37]} 19. cxd5 {[%clk 0:02:11]}  Rc2 {[%clk 0:01:29]} 20. Nf3 {[%clk 0:01:58]}  Ng4 {[%clk 0:01:04]} 21. Bxg7 {[%clk 0:01:56]}  Kxg7 {[%clk 0:01:05]} 22. Qxa4 {[%clk 0:01:43]}  Rxa4 {[%clk 0:00:18]} 23. Rxe7 {[%clk 0:01:43]}  Bf5 {[%clk 0:00:18]} 24. Ng5 {[%clk 0:01:30]}  Kf6 {[%clk 0:00:16]} 25. Rxf7+ {[%clk 0:01:29]}  Kxg5 {[%clk 0:00:17]} 26. d6 {[%clk 0:01:11]}  Raxa2 {[%clk 0:00:17]} 27. Rxa2 {[%clk 0:00:48]}  Rxa2 {[%clk 0:00:18]} 28. h3 {[%clk 0:00:48]}  Ra1+ {[%clk 0:00:03]} 29. Bf1 {[%clk 0:00:47]}  Bd3 {[%clk 0:00:03]} 30. f4+ {[%clk 0:00:40]}  Kh6 {[%clk 0:00:03]} 31. hxg4 {[%clk 0:00:38]}  Bxf1 {[%clk 0:00:03]} 32. d7 {[%clk 0:00:33]}  Bb5+ {[%clk 0:00:02]} 33. Kf2 {[%clk 0:00:28]}  Rd1 {[%clk 0:00:03]} 34. g5+ {[%clk 0:00:16]}  Kh5 {[%clk 0:00:03]} 35. Rxh7+ {[%clk 0:00:12]}  Kg4 {[%clk 0:00:04]} 36. d8=Q {[%clk 0:00:09]}  Rxd8 {[%clk 0:00:04]} 37. Rxb7 {[%clk 0:00:09]}  Bd3 {[%clk 0:00:04]} 38. Rb2 {[%clk 0:00:07]}  Bf5 {[%clk 0:00:03]} 39. Rb3 {[%clk 0:00:07]}  Rd2+ {[%clk 0:00:03]} 40. Ke3 {[%clk 0:00:07]}  Rg2 {[%clk 0:00:03]} 0-1


[Site "https://www.chess.com"]

[Event "Titled Tuesday Blitz October 04 Late 2022"]
[White "Duda, Jan-Krzysztof"]
[Black "Kravtsiv, Martyn"]
[WhiteFideId "1170546"]
[BlackFideId "14113147"]
[WhiteElo "2779"]
[BlackElo "2694"]
[Result "1-0"]
[Round "07"]
[TimeControl "180+1"]
[Date "2022.10.04"]
[WhiteClock "0:00:16"]
[BlackClock "0:00:02"]

1. d4 {[%clk 0:02:15]}  d5 {[%clk 0:02:58]} 2. c4 {[%clk 0:02:15]}  e6 {[%clk 0:02:58]} 3. Nc3 {[%clk 0:02:14]}  Bb4 {[%clk 0:02:58]} 4. Qa4+ {[%clk 0:02:14]}  Nc6 {[%clk 0:02:58]} 5. e3 {[%clk 0:02:14]}  Bd7 {[%clk 0:02:46]} 6. Qc2 {[%clk 0:02:14]}  Nf6 {[%clk 0:02:45]} 7. Bd2 {[%clk 0:02:13]}  O-O {[%clk 0:02:38]} 8. a3 {[%clk 0:02:13]}  Bxc3 {[%clk 0:02:38]} 9. Bxc3 {[%clk 0:02:13]}  Ne4 {[%clk 0:02:30]} 10. Ne2 {[%clk 0:02:03]}  Ne7 {[%clk 0:02:11]} 11. Ng3 {[%clk 0:01:29]}  Nxc3 {[%clk 0:02:10]} 12. Qxc3 {[%clk 0:01:29]}  c6 {[%clk 0:02:05]} 13. Be2 {[%clk 0:01:28]}  f5 {[%clk 0:01:57]} 14. f4 {[%clk 0:01:22]}  Nc8 {[%clk 0:01:52]} 15. c5 {[%clk 0:01:22]}  a5 {[%clk 0:01:14]} 16. b4 {[%clk 0:01:20]}  b5 {[%clk 0:01:11]} 17. a4 {[%clk 0:00:59]}  axb4 {[%clk 0:01:04]} 18. Qxb4 {[%clk 0:01:00]}  Qa5 {[%clk 0:01:01]} 19. Qxa5 {[%clk 0:01:00]}  Rxa5 {[%clk 0:01:02]} 20. Kd2 {[%clk 0:01:01]}  bxa4 {[%clk 0:00:59]} 21. Rhb1 {[%clk 0:01:01]}  Na7 {[%clk 0:00:52]} 22. Rb4 {[%clk 0:00:59]}  a3 {[%clk 0:00:34]} 23. Rb3 {[%clk 0:00:59]}  Rc8 {[%clk 0:00:32]} 24. Raxa3 {[%clk 0:00:51]}  Rxa3 {[%clk 0:00:31]} 25. Rxa3 {[%clk 0:00:52]}  Rc7 {[%clk 0:00:32]} 26. Nh1 {[%clk 0:00:52]}  Rb7 {[%clk 0:00:28]} 27. Kc2 {[%clk 0:00:50]}  Kf7 {[%clk 0:00:21]} 28. Nf2 {[%clk 0:00:50]}  Ke7 {[%clk 0:00:22]} 29. Nd3 {[%clk 0:00:50]}  Be8 {[%clk 0:00:21]} 30. Ne5 {[%clk 0:00:49]}  Kd8 {[%clk 0:00:20]} 31. Ba6 {[%clk 0:00:47]}  Rb8 {[%clk 0:00:17]} 32. Bd3 {[%clk 0:00:33]}  Rb7 {[%clk 0:00:17]} 33. g4 {[%clk 0:00:33]}  g6 {[%clk 0:00:14]} 34. g5 {[%clk 0:00:31]}  Kc7 {[%clk 0:00:13]} 35. h4 {[%clk 0:00:30]}  Kb8 {[%clk 0:00:11]} 36. Ra1 {[%clk 0:00:29]}  h5 {[%clk 0:00:09]} 37. gxh6 {[%clk 0:00:24]}  Rh7 {[%clk 0:00:09]} 38. h5 {[%clk 0:00:18]}  gxh5 {[%clk 0:00:07]} 39. Rg1 {[%clk 0:00:19]}  Rxh6 {[%clk 0:00:03]} 40. Rg8 {[%clk 0:00:19]}  h4 {[%clk 0:00:03]} 41. Rxe8+ {[%clk 0:00:19]}  Kc7 {[%clk 0:00:02]} 42. Re7+ {[%clk 0:00:19]}  Kb8 {[%clk 0:00:03]} 43. Nd7+ {[%clk 0:00:16]}  Kc8 {[%clk 0:00:01]} 44. Nb6+ {[%clk 0:00:17]}  Kb8 {[%clk 0:00:02]} 45. Ba6 {[%clk 0:00:16]} 1-0


[Site "https://www.chess.com"]

[Event "Titled Tuesday Blitz October 04 Late 2022"]
[White "Girel, Joseph"]
[Black "Maksimovic, Bojan"]
[WhiteFideId "36033561"]
[BlackFideId "14408120"]
[WhiteElo "2281"]
[BlackElo "2447"]
[Result "0-1"]
[Round "07"]
[TimeControl "180+1"]
[Date "2022.10.04"]
[WhiteClock "0:01:52"]
[BlackClock "0:02:12"]

1. d4 {[%clk 0:03:00]}  Nf6 {[%clk 0:03:00]} 2. c4 {[%clk 0:03:00]}  g6 {[%clk 0:03:00]} 3. Nf3 {[%clk 0:03:00]}  Bg7 {[%clk 0:03:01]} 4. g3 {[%clk 0:03:01]}  O-O {[%clk 0:03:01]} 5. Bg2 {[%clk 0:03:02]}  d6 {[%clk 0:03:02]} 6. O-O {[%clk 0:03:02]}  Nc6 {[%clk 0:03:03]} 7. Nc3 {[%clk 0:03:02]}  Bg4 {[%clk 0:03:04]} 8. d5 {[%clk 0:03:00]}  Na5 {[%clk 0:03:03]} 9. b3 {[%clk 0:03:00]}  c5 {[%clk 0:03:03]} 10. Bd2 {[%clk 0:02:56]}  a6 {[%clk 0:03:00]} 11. h3 {[%clk 0:02:55]}  Bxf3 {[%clk 0:02:58]} 12. exf3 {[%clk 0:02:56]}  Rb8 {[%clk 0:02:52]} 13. Qe1 {[%clk 0:02:55]}  b5 {[%clk 0:02:46]} 14. Rb1 {[%clk 0:02:46]}  bxc4 {[%clk 0:02:45]} 15. Na4 {[%clk 0:02:46]}  Rb5 {[%clk 0:02:37]} 16. Nc3 {[%clk 0:02:34]}  Rb4 {[%clk 0:02:31]} 17. Ne4 {[%clk 0:02:24]}  Nxd5 {[%clk 0:02:26]} 18. Bxb4 {[%clk 0:02:20]}  cxb4 {[%clk 0:02:25]} 19. bxc4 {[%clk 0:02:17]}  Nxc4 {[%clk 0:02:26]} 20. Rc1 {[%clk 0:02:13]}  Nc3 {[%clk 0:02:23]} 21. Nxc3 {[%clk 0:02:12]}  bxc3 {[%clk 0:02:24]} 22. f4 {[%clk 0:02:09]}  Nd2 {[%clk 0:02:23]} 23. f5 {[%clk 0:02:00]}  Nxf1 {[%clk 0:02:23]} 24. Bxf1 {[%clk 0:02:01]}  gxf5 {[%clk 0:02:21]} 25. Bxa6 {[%clk 0:02:00]}  e6 {[%clk 0:02:21]} 26. Bd3 {[%clk 0:01:58]}  Qa5 {[%clk 0:02:18]} 27. Bb1 {[%clk 0:01:56]}  Rb8 {[%clk 0:02:17]} 28. Qd1 {[%clk 0:01:54]}  Qc7 {[%clk 0:02:13]} 29. g4 {[%clk 0:01:52]}  Rxb1 {[%clk 0:02:12]} 0-1


[Site "https://www.chess.com"]

[Event "Titled Tuesday Blitz October 04 Late 2022"]
[White "Howell, David W L"]
[Black "Zakhartsov, Vladimir"]
[WhiteFideId "410608"]
[BlackFideId "4145097"]
[WhiteElo "2567"]
[BlackElo "2492"]
[Result "1/2-1/2"]
[Round "07"]
[TimeControl "180+1"]
[Date "2022.10.04"]
[WhiteClock "0:00:07"]
[BlackClock "0:00:04"]

1. d4 {[%clk 0:03:00]}  Nf6 {[%clk 0:02:59]} 2. Nf3 {[%clk 0:02:59]}  d5 {[%clk 0:02:58]} 3. g3 {[%clk 0:02:57]}  g6 {[%clk 0:02:56]} 4. Bg2 {[%clk 0:02:54]}  Bg7 {[%clk 0:02:56]} 5. c4 {[%clk 0:02:53]}  c6 {[%clk 0:02:56]} 6. b3 {[%clk 0:02:52]}  O-O {[%clk 0:02:49]} 7. Bb2 {[%clk 0:02:43]}  Bf5 {[%clk 0:02:43]} 8. O-O {[%clk 0:02:38]}  Nbd7 {[%clk 0:02:41]} 9. e3 {[%clk 0:02:37]}  Ne4 {[%clk 0:02:38]} 10. Qe2 {[%clk 0:02:36]}  Ndf6 {[%clk 0:02:36]} 11. Ne5 {[%clk 0:02:32]}  Nd7 {[%clk 0:02:30]} 12. Nf3 {[%clk 0:02:20]}  Ndf6 {[%clk 0:02:28]} 13. Ne5 {[%clk 0:02:21]}  Nd7 {[%clk 0:02:28]} 14. Nd3 {[%clk 0:02:22]}  Ndf6 {[%clk 0:02:06]} 15. Rc1 {[%clk 0:02:07]}  h5 {[%clk 0:01:52]} 16. Ne5 {[%clk 0:02:00]}  Nd7 {[%clk 0:01:43]} 17. Nd3 {[%clk 0:02:00]}  Ndf6 {[%clk 0:01:42]} 18. f3 {[%clk 0:01:54]}  Ng5 {[%clk 0:01:40]} 19. Nd2 {[%clk 0:01:53]}  Re8 {[%clk 0:01:33]} 20. Nf2 {[%clk 0:01:41]}  Bh6 {[%clk 0:01:17]} 21. Re1 {[%clk 0:01:34]}  Qd7 {[%clk 0:01:10]} 22. Qf1 {[%clk 0:01:28]}  Ngh7 {[%clk 0:00:48]} 23. Rad1 {[%clk 0:01:25]}  Bc2 {[%clk 0:00:44]} 24. Rc1 {[%clk 0:01:25]}  Bf5 {[%clk 0:00:45]} 25. Rcd1 {[%clk 0:01:26]}  Bc2 {[%clk 0:00:45]} 26. Rc1 {[%clk 0:01:27]}  Bf5 {[%clk 0:00:46]} 27. Nd3 {[%clk 0:01:18]}  Bxd3 {[%clk 0:00:42]} 28. Qxd3 {[%clk 0:01:19]}  e6 {[%clk 0:00:39]} 29. Rcd1 {[%clk 0:01:12]}  Rad8 {[%clk 0:00:39]} 30. e4 {[%clk 0:01:02]}  dxe4 {[%clk 0:00:39]} 31. fxe4 {[%clk 0:01:03]}  e5 {[%clk 0:00:37]} 32. d5 {[%clk 0:01:00]}  Bf8 {[%clk 0:00:37]} 33. Re2 {[%clk 0:00:45]}  Ng5 {[%clk 0:00:32]} 34. Kh1 {[%clk 0:00:43]}  Ng4 {[%clk 0:00:20]} 35. Rf1 {[%clk 0:00:39]}  Bc5 {[%clk 0:00:19]} 36. h3 {[%clk 0:00:20]}  Nh6 {[%clk 0:00:20]} 37. Kh2 {[%clk 0:00:20]}  Nh7 {[%clk 0:00:16]} 38. Nf3 {[%clk 0:00:18]}  f6 {[%clk 0:00:16]} 39. Nh4 {[%clk 0:00:18]}  Kg7 {[%clk 0:00:17]} 40. Qf3 {[%clk 0:00:16]}  Rf8 {[%clk 0:00:15]} 41. Rd2 {[%clk 0:00:14]}  Ng5 {[%clk 0:00:14]} 42. Qe2 {[%clk 0:00:13]}  Qe7 {[%clk 0:00:12]} 43. Rfd1 {[%clk 0:00:13]}  Bb4 {[%clk 0:00:12]} 44. Rd3 {[%clk 0:00:14]}  Nhf7 {[%clk 0:00:07]} 45. Bc1 {[%clk 0:00:12]}  Bc5 {[%clk 0:00:06]} 46. Bd2 {[%clk 0:00:12]}  Bd4 {[%clk 0:00:06]} 47. Qxh5 {[%clk 0:00:11]}  Nh8 {[%clk 0:00:03]} 48. Qe2 {[%clk 0:00:10]}  c5 {[%clk 0:00:03]} 49. Rf1 {[%clk 0:00:09]}  Nhf7 {[%clk 0:00:03]} 50. Qh5 {[%clk 0:00:09]}  Nh8 {[%clk 0:00:03]} 51. Qg4 {[%clk 0:00:08]}  Nhf7 {[%clk 0:00:03]} 52. Bc1 {[%clk 0:00:03]}  Rh8 {[%clk 0:00:03]} 53. Qf5 {[%clk 0:00:03]}  Rh6 {[%clk 0:00:03]} 54. Qg4 {[%clk 0:00:03]}  Nd6 {[%clk 0:00:03]} 55. Bxg5 {[%clk 0:00:01]}  fxg5 {[%clk 0:00:04]} 56. Nf3 {[%clk 0:00:02]}  Rh5 {[%clk 0:00:04]} 57. Kh1 {[%clk 0:00:02]}  Ne8 {[%clk 0:00:04]} 58. Rd2 {[%clk 0:00:02]}  Nf6 {[%clk 0:00:04]} 59. Qe6 {[%clk 0:00:02]}  Qxe6 {[%clk 0:00:03]} 60. dxe6 {[%clk 0:00:03]}  g4 {[%clk 0:00:04]} 61. Nh2 {[%clk 0:00:02]}  gxh3 {[%clk 0:00:04]} 62. Bf3 {[%clk 0:00:03]}  Rhh8 {[%clk 0:00:04]} 63. Ng4 {[%clk 0:00:03]}  Rde8 {[%clk 0:00:04]} 64. Nxf6 {[%clk 0:00:03]}  Kxf6 {[%clk 0:00:05]} 65. Bg4+ {[%clk 0:00:03]}  Kg5 {[%clk 0:00:05]} 66. Bd1 {[%clk 0:00:03]}  Rxe6 {[%clk 0:00:05]} 67. Kh2 {[%clk 0:00:04]}  Rf6 {[%clk 0:00:05]} 68. Rxf6 {[%clk 0:00:04]}  Kxf6 {[%clk 0:00:06]} 69. Rd3 {[%clk 0:00:05]}  Kg5 {[%clk 0:00:06]} 70. Rf3 {[%clk 0:00:06]}  Rd8 {[%clk 0:00:05]} 71. Kxh3 {[%clk 0:00:05]}  Rd7 {[%clk 0:00:05]} 72. Be2 {[%clk 0:00:05]}  b6 {[%clk 0:00:05]} 73. Kg2 {[%clk 0:00:05]}  Bb2 {[%clk 0:00:05]} 74. Rd3 {[%clk 0:00:06]}  Bd4 {[%clk 0:00:04]} 75. Rf3 {[%clk 0:00:06]}  Bb2 {[%clk 0:00:04]} 76. Rd3 {[%clk 0:00:06]}  Bd4 {[%clk 0:00:04]} 77. Rf3 {[%clk 0:00:07]} 1/2-1/2


[Site "https://www.chess.com"]